[Event "Titled Tuesday Blitz October 19 2021"]
[White "Jobava, Baadur"]
[Black "Aradhya, Garg"]
[WhiteFideId "13601520"]
[BlackFideId "25006746"]
[WhiteElo "2731"]
[BlackElo "2146"]
[Result "1-0"]
[Round "07"]
[TimeControl "180+1"]
[Date "2021.10.19"]
[WhiteClock "0:01:40"]
[BlackClock "0:00:05"]

1. e4 {[%clk 0:03:00]}  e5 {[%clk 0:02:59]} 2. Nf3 {[%clk 0:03:01]}  Nc6 {[%clk 0:02:59]} 3. d4 {[%clk 0:03:01]}  exd4 {[%clk 0:02:59]} 4. Nxd4 {[%clk 0:03:02]}  Nf6 {[%clk 0:02:59]} 5. Nxc6 {[%clk 0:03:03]}  bxc6 {[%clk 0:03:00]} 6. Bd3 {[%clk 0:03:04]}  d5 {[%clk 0:02:59]} 7. exd5 {[%clk 0:03:05]}  cxd5 {[%clk 0:02:59]} 8. O-O {[%clk 0:03:05]}  Be7 {[%clk 0:02:59]} 9. Re1 {[%clk 0:03:06]}  O-O {[%clk 0:02:59]} 10. h3 {[%clk 0:03:07]}  c5 {[%clk 0:02:58]} 11. Nd2 {[%clk 0:03:07]}  c4 {[%clk 0:02:46]} 12. Bf1 {[%clk 0:03:05]}  Bc5 {[%clk 0:02:47]} 13. Nf3 {[%clk 0:03:03]}  Qb6 {[%clk 0:02:47]} 14. Re3 {[%clk 0:02:46]}  Bf5 {[%clk 0:02:14]} 15. c3 {[%clk 0:02:27]}  Bxe3 {[%clk 0:02:13]} 16. Bxe3 {[%clk 0:02:23]}  Qxb2 {[%clk 0:02:12]} 17. Bd4 {[%clk 0:02:23]}  Ne4 {[%clk 0:02:07]} 18. Qe1 {[%clk 0:02:10]}  Rfe8 {[%clk 0:01:52]} 19. Rb1 {[%clk 0:02:11]}  Qxa2 {[%clk 0:01:48]} 20. Ra1 {[%clk 0:02:11]}  Qb3 {[%clk 0:01:43]} 21. Qc1 {[%clk 0:02:07]}  a5 {[%clk 0:01:23]} 22. g4 {[%clk 0:02:07]}  Bg6 {[%clk 0:01:21]} 23. h4 {[%clk 0:02:08]}  h5 {[%clk 0:01:11]} 24. Ne5 {[%clk 0:02:07]}  hxg4 {[%clk 0:00:37]} 25. Nxg4 {[%clk 0:02:07]}  f6 {[%clk 0:00:24]} 26. Bg2 {[%clk 0:02:02]}  Qb7 {[%clk 0:00:22]} 27. Qf4 {[%clk 0:01:57]}  Qb8 {[%clk 0:00:20]} 28. Qe3 {[%clk 0:01:55]}  Qd6 {[%clk 0:00:18]} 29. Qh3 {[%clk 0:01:51]}  a4 {[%clk 0:00:14]} 30. h5 {[%clk 0:01:51]}  Bh7 {[%clk 0:00:14]} 31. h6 {[%clk 0:01:52]}  g5 {[%clk 0:00:14]} 32. Bxe4 {[%clk 0:01:52]}  Rxe4 {[%clk 0:00:13]} 33. Nxf6+ {[%clk 0:01:52]}  Kf7 {[%clk 0:00:13]} 34. Nxh7 {[%clk 0:01:51]}  Kg6 {[%clk 0:00:09]} 35. Rb1 {[%clk 0:01:45]}  Rb8 {[%clk 0:00:06]} 36. Rxb8 {[%clk 0:01:43]}  Qxb8 {[%clk 0:00:07]} 37. Nf6 {[%clk 0:01:43]}  a3 {[%clk 0:00:04]} 38. Nxe4 {[%clk 0:01:41]}  Qb1+ {[%clk 0:00:03]} 39. Kh2 {[%clk 0:01:41]}  Qxe4 {[%clk 0:00:04]} 40. h7 {[%clk 0:01:40]}  Qf4+ {[%clk 0:00:05]} 41. Kg2 {[%clk 0:01:39]}  Qxd4 {[%clk 0:00:05]} 42. cxd4 {[%clk 0:01:39]}  a2 {[%clk 0:00:05]} 43. h8=Q {[%clk 0:01:40]}  a1=Q {[%clk 0:00:05]} 44. Q3h7# {[%clk 0:01:40]} 1-0


[Site "https://www.chess.com"]

[Event "Titled Tuesday Blitz October 19 2021"]
[White "Kezin, Roman"]
[Black "Svidler, Peter"]
[WhiteFideId "24124621"]
[BlackFideId "4102142"]
[WhiteElo "2557"]
[BlackElo "2709"]
[Result "0-1"]
[Round "07"]
[TimeControl "180+1"]
[Date "2021.10.19"]
[WhiteClock "0:00:51"]
[BlackClock "0:01:35"]

1. d4 {[%clk 0:03:00]}  Nf6 {[%clk 0:02:59]} 2. c4 {[%clk 0:03:00]}  g6 {[%clk 0:02:59]} 3. Nc3 {[%clk 0:03:00]}  d5 {[%clk 0:02:59]} 4. Nf3 {[%clk 0:02:59]}  Bg7 {[%clk 0:02:59]} 5. Bg5 {[%clk 0:03:00]}  Ne4 {[%clk 0:02:53]} 6. Bh4 {[%clk 0:02:59]}  Nxc3 {[%clk 0:02:51]} 7. bxc3 {[%clk 0:03:00]}  dxc4 {[%clk 0:02:44]} 8. Qa4+ {[%clk 0:03:00]}  Qd7 {[%clk 0:02:44]} 9. Qxc4 {[%clk 0:03:00]}  b6 {[%clk 0:02:45]} 10. e3 {[%clk 0:03:00]}  Ba6 {[%clk 0:02:44]} 11. Qb3 {[%clk 0:03:01]}  Bxf1 {[%clk 0:02:44]} 12. Kxf1 {[%clk 0:03:01]}  O-O {[%clk 0:02:43]} 13. Ke2 {[%clk 0:03:02]}  Nc6 {[%clk 0:02:42]} 14. Rhd1 {[%clk 0:03:02]}  Na5 {[%clk 0:02:34]} 15. Qb4 {[%clk 0:03:02]}  Qd5 {[%clk 0:02:32]} 16. Bxe7 {[%clk 0:02:40]}  Rfe8 {[%clk 0:02:30]} 17. Bh4 {[%clk 0:02:40]}  Bf8 {[%clk 0:02:20]} 18. Qa4 {[%clk 0:02:36]}  Nc4 {[%clk 0:02:17]} 19. Kf1 {[%clk 0:02:34]}  Nb2 {[%clk 0:02:15]} 20. c4 {[%clk 0:02:24]}  Qxf3 {[%clk 0:02:09]} 21. Qxe8 {[%clk 0:01:49]}  Qxd1+ {[%clk 0:02:09]} 22. Rxd1 {[%clk 0:01:50]}  Rxe8 {[%clk 0:02:10]} 23. Rc1 {[%clk 0:01:50]}  f5 {[%clk 0:01:55]} 24. Bg3 {[%clk 0:01:48]}  c6 {[%clk 0:01:54]} 25. Rc2 {[%clk 0:01:48]}  Na4 {[%clk 0:01:54]} 26. Be5 {[%clk 0:01:37]}  Kf7 {[%clk 0:01:53]} 27. f4 {[%clk 0:01:38]}  Ke6 {[%clk 0:01:53]} 28. Ke2 {[%clk 0:01:38]}  Kd7 {[%clk 0:01:51]} 29. Kf3 {[%clk 0:01:35]}  a6 {[%clk 0:01:51]} 30. g4 {[%clk 0:01:34]}  b5 {[%clk 0:01:51]} 31. c5 {[%clk 0:01:34]}  b4 {[%clk 0:01:46]} 32. h4 {[%clk 0:01:26]}  a5 {[%clk 0:01:46]} 33. h5 {[%clk 0:01:25]}  Nc3 {[%clk 0:01:45]} 34. Rh2 {[%clk 0:01:20]}  a4 {[%clk 0:01:40]} 35. hxg6 {[%clk 0:01:14]}  hxg6 {[%clk 0:01:40]} 36. Rb2 {[%clk 0:01:08]}  b3 {[%clk 0:01:35]} 37. axb3 {[%clk 0:00:56]}  a3 {[%clk 0:01:35]} 38. Rh2 {[%clk 0:00:51]}  a2 {[%clk 0:01:35]} 39. Rh1 {[%clk 0:00:51]}  Nb1 {[%clk 0:01:35]} 0-1


[Site "https://www.chess.com"]

[Event "Titled Tuesday Blitz October 19 2021"]
[White "Lugovskoy, Maxim"]
[Black "Palchuk, Andrii"]
[WhiteFideId "24126454"]
[BlackFideId "14176688"]
[WhiteElo "2466"]
[BlackElo "2322"]
[Result "1-0"]
[Round "07"]
[TimeControl "180+1"]
[Date "2021.10.19"]
[WhiteClock "0:00:18"]
[BlackClock "0:00:16"]

1. e4 {[%clk 0:03:00]}  e5 {[%clk 0:02:54]} 2. Nf3 {[%clk 0:03:00]}  Nc6 {[%clk 0:02:55]} 3. Nc3 {[%clk 0:03:00]}  Nf6 {[%clk 0:02:54]} 4. d4 {[%clk 0:03:00]}  exd4 {[%clk 0:02:54]} 5. Nxd4 {[%clk 0:03:01]}  Bb4 {[%clk 0:02:54]} 6. Nxc6 {[%clk 0:03:01]}  bxc6 {[%clk 0:02:54]} 7. Bd3 {[%clk 0:03:02]}  d5 {[%clk 0:02:53]} 8. exd5 {[%clk 0:03:01]}  O-O {[%clk 0:02:52]} 9. O-O {[%clk 0:03:02]}  cxd5 {[%clk 0:02:52]} 10. h3 {[%clk 0:03:02]}  c6 {[%clk 0:02:51]} 11. Qf3 {[%clk 0:03:02]}  Bd6 {[%clk 0:02:46]} 12. Bf4 {[%clk 0:03:02]}  Rb8 {[%clk 0:02:45]} 13. b3 {[%clk 0:03:02]}  Rb4 {[%clk 0:02:44]} 14. Ne2 {[%clk 0:03:01]}  Re8 {[%clk 0:02:44]} 15. Bxd6 {[%clk 0:02:58]}  Qxd6 {[%clk 0:02:45]} 16. Rfe1 {[%clk 0:02:57]}  Bd7 {[%clk 0:02:42]} 17. Ng3 {[%clk 0:02:56]}  Re5 {[%clk 0:02:34]} 18. Bf5 {[%clk 0:02:52]}  Rf4 {[%clk 0:02:28]} 19. Qc3 {[%clk 0:02:18]}  Rxe1+ {[%clk 0:02:19]} 20. Rxe1 {[%clk 0:02:17]}  Bxf5 {[%clk 0:02:20]} 21. Qe3 {[%clk 0:02:11]}  h6 {[%clk 0:02:15]} 22. Qxa7 {[%clk 0:02:09]}  Bxc2 {[%clk 0:02:14]} 23. a4 {[%clk 0:02:05]}  Bxb3 {[%clk 0:02:13]} 24. a5 {[%clk 0:02:06]}  Ne4 {[%clk 0:01:43]} 25. a6 {[%clk 0:01:26]}  Nxg3 {[%clk 0:01:36]} 26. Qb7 {[%clk 0:01:08]}  Qc5 {[%clk 0:01:12]} 27. Qb8+ {[%clk 0:01:07]}  Kh7 {[%clk 0:01:11]} 28. Qxf4 {[%clk 0:01:07]}  Ne4 {[%clk 0:01:10]} 29. Qxf7 {[%clk 0:00:59]}  Qa5 {[%clk 0:01:02]} 30. Re3 {[%clk 0:00:51]}  Qxa6 {[%clk 0:00:53]} 31. Qf5+ {[%clk 0:00:37]}  Kh8 {[%clk 0:00:46]} 32. Rxb3 {[%clk 0:00:32]}  Qa1+ {[%clk 0:00:41]} 33. Kh2 {[%clk 0:00:31]}  Qa8 {[%clk 0:00:41]} 34. Qe5 {[%clk 0:00:30]}  Kh7 {[%clk 0:00:41]} 35. Rb8 {[%clk 0:00:29]}  Qa7 {[%clk 0:00:40]} 36. Qf5+ {[%clk 0:00:29]}  g6 {[%clk 0:00:36]} 37. Qf8 {[%clk 0:00:25]}  Qg7 {[%clk 0:00:22]} 38. Qc8 {[%clk 0:00:23]}  Qe5+ {[%clk 0:00:17]} 39. g3 {[%clk 0:00:23]}  h5 {[%clk 0:00:16]} 40. Rb7+ {[%clk 0:00:18]}  Kh6 {[%clk 0:00:16]} 41. Qf8+ {[%clk 0:00:18]} 1-0


[Site "https://www.chess.com"]

[Event "Titled Tuesday Blitz October 19 2021"]
[White "Nakamura, Hikaru"]
[Black "Demchenko, Anton"]
[WhiteFideId "2016192"]
[BlackFideId "4160258"]
[WhiteElo "2884"]
[BlackElo "2583"]
[Result "1-0"]
[Round "07"]
[TimeControl "180+1"]
[Date "2021.10.19"]
[WhiteClock "0:00:38"]
[BlackClock "0:00:21"]

1. e4 {[%clk 0:03:00]}  e5 {[%clk 0:02:59]} 2. Nc3 {[%clk 0:03:00]}  Nf6 {[%clk 0:02:58]} 3. g3 {[%clk 0:02:57]}  d5 {[%clk 0:02:58]} 4. exd5 {[%clk 0:02:58]}  Nxd5 {[%clk 0:02:58]} 5. Bg2 {[%clk 0:02:58]}  Nxc3 {[%clk 0:02:58]} 6. bxc3 {[%clk 0:02:58]}  Bd6 {[%clk 0:02:59]} 7. Nf3 {[%clk 0:02:58]}  O-O {[%clk 0:02:59]} 8. O-O {[%clk 0:02:58]}  Nd7 {[%clk 0:02:58]} 9. Re1 {[%clk 0:02:57]}  Re8 {[%clk 0:02:56]} 10. d4 {[%clk 0:02:44]}  exd4 {[%clk 0:02:56]} 11. cxd4 {[%clk 0:02:42]}  Rxe1+ {[%clk 0:02:40]} 12. Nxe1 {[%clk 0:02:36]}  Nf6 {[%clk 0:02:30]} 13. c4 {[%clk 0:02:33]}  Bg4 {[%clk 0:02:26]} 14. Qb3 {[%clk 0:02:30]}  Rb8 {[%clk 0:02:25]} 15. Nc2 {[%clk 0:02:24]}  c5 {[%clk 0:02:18]} 16. h3 {[%clk 0:02:10]}  Bd1 {[%clk 0:02:13]} 17. Be3 {[%clk 0:01:41]}  Bxc2 {[%clk 0:02:05]} 18. Qxc2 {[%clk 0:01:42]}  Qc7 {[%clk 0:02:02]} 19. Rd1 {[%clk 0:01:30]}  h6 {[%clk 0:01:59]} 20. dxc5 {[%clk 0:01:29]}  Bxc5 {[%clk 0:01:58]} 21. Bf4 {[%clk 0:01:29]}  Qc8 {[%clk 0:01:52]} 22. Bxb8 {[%clk 0:01:29]}  Qxb8 {[%clk 0:01:53]} 23. Rd3 {[%clk 0:01:26]}  b6 {[%clk 0:01:46]} 24. Bd5 {[%clk 0:01:26]}  Qe5 {[%clk 0:01:39]} 25. Kg2 {[%clk 0:01:25]}  g6 {[%clk 0:01:32]} 26. Rd2 {[%clk 0:01:13]}  Kg7 {[%clk 0:01:29]} 27. Qb2 {[%clk 0:01:12]}  Qf5 {[%clk 0:01:25]} 28. Re2 {[%clk 0:01:07]}  Bd6 {[%clk 0:01:06]} 29. Re3 {[%clk 0:01:05]}  h5 {[%clk 0:00:54]} 30. Rf3 {[%clk 0:01:04]}  Qe5 {[%clk 0:00:52]} 31. Qxe5 {[%clk 0:01:04]}  Bxe5 {[%clk 0:00:53]} 32. Ra3 {[%clk 0:01:03]}  Bb8 {[%clk 0:00:51]} 33. Bc6 {[%clk 0:00:58]}  Kf8 {[%clk 0:00:51]} 34. f4 {[%clk 0:00:54]}  Ke7 {[%clk 0:00:49]} 35. Kf3 {[%clk 0:00:54]}  Kd6 {[%clk 0:00:48]} 36. Bb5 {[%clk 0:00:55]}  a5 {[%clk 0:00:43]} 37. Re3 {[%clk 0:00:52]}  h4 {[%clk 0:00:29]} 38. g4 {[%clk 0:00:50]}  g5 {[%clk 0:00:26]} 39. fxg5 {[%clk 0:00:48]}  Nh7 {[%clk 0:00:26]} 40. Kf4 {[%clk 0:00:44]}  Nf8 {[%clk 0:00:24]} 41. Kf5 {[%clk 0:00:43]}  Ne6 {[%clk 0:00:22]} 42. Kf6 {[%clk 0:00:40]}  Bc7 {[%clk 0:00:21]} 43. Rxe6+ {[%clk 0:00:38]}  fxe6 {[%clk 0:00:21]} 44. g6 {[%clk 0:00:38]} 1-0


[Site "https://www.chess.com"]

[Event "Titled Tuesday Blitz October 19 2021"]
[White "Nozdrachev, Leonid"]
[Black "Bordi, Kevin"]
[WhiteFideId "24113433"]
[BlackFideId "621862"]
[WhiteElo "2124"]
[BlackElo "2743"]
[Result "1/2-1/2"]
[Round "07"]
[TimeControl "180+1"]
[Date "2021.10.19"]
[WhiteClock "0:00:51"]
[BlackClock "0:00:33"]

1. e4 {[%clk 0:03:00]}  d5 {[%clk 0:03:00]} 2. exd5 {[%clk 0:03:00]}  Qxd5 {[%clk 0:03:01]} 3. Nc3 {[%clk 0:03:00]}  Qa5 {[%clk 0:03:01]} 4. d4 {[%clk 0:02:59]}  Nf6 {[%clk 0:03:01]} 5. Nf3 {[%clk 0:02:57]}  Nc6 {[%clk 0:03:01]} 6. Bb5 {[%clk 0:02:56]}  Ne4 {[%clk 0:03:00]} 7. Rb1 {[%clk 0:02:54]}  Bd7 {[%clk 0:02:58]} 8. d5 {[%clk 0:02:51]}  Nb8 {[%clk 0:02:53]} 9. Bd3 {[%clk 0:02:46]}  Nf6 {[%clk 0:02:39]} 10. b4 {[%clk 0:02:41]}  Qb6 {[%clk 0:02:37]} 11. Be3 {[%clk 0:02:40]}  Qd6 {[%clk 0:02:37]} 12. Bc5 {[%clk 0:02:22]}  Qf4 {[%clk 0:02:36]} 13. O-O {[%clk 0:02:19]}  Bg4 {[%clk 0:02:29]} 14. Re1 {[%clk 0:02:06]}  Nbd7 {[%clk 0:02:24]} 15. Qe2 {[%clk 0:01:58]}  Bxf3 {[%clk 0:02:18]} 16. gxf3 {[%clk 0:01:57]}  O-O-O {[%clk 0:01:51]} 17. Be3 {[%clk 0:01:38]}  Qh4 {[%clk 0:01:49]} 18. Nb5 {[%clk 0:01:35]}  Nxd5 {[%clk 0:01:34]} 19. Be4 {[%clk 0:01:26]}  e6 {[%clk 0:01:26]} 20. Nxa7+ {[%clk 0:01:21]}  Kb8 {[%clk 0:01:25]} 21. b5 {[%clk 0:01:22]}  Bd6 {[%clk 0:01:20]} 22. Nc6+ {[%clk 0:01:12]}  Kc8 {[%clk 0:00:55]} 23. Na7+ {[%clk 0:01:09]}  Kb8 {[%clk 0:00:55]} 24. Nc6+ {[%clk 0:01:10]}  Kc8 {[%clk 0:00:33]} 25. Na7+ {[%clk 0:00:51]}  Kb8 {[%clk 0:00:33]} 1/2-1/2


[Site "https://www.chess.com"]

[Event "Titled Tuesday Blitz October 19 2021"]
[White "Obregon, Andres Carlos"]
[Black "Zubov, Alexander"]
[WhiteFideId "111724"]
[BlackFideId "14109409"]
[WhiteElo "2572"]
[BlackElo "2685"]
[Result "0-1"]
[Round "07"]
[TimeControl "180+1"]
[Date "2021.10.19"]
[WhiteClock "0:00:43"]
[BlackClock "0:00:39"]

1. e4 {[%clk 0:03:00]}  c5 {[%clk 0:02:59]} 2. Nf3 {[%clk 0:02:59]}  e6 {[%clk 0:03:00]} 3. d4 {[%clk 0:02:56]}  cxd4 {[%clk 0:03:00]} 4. Nxd4 {[%clk 0:02:53]}  a6 {[%clk 0:03:01]} 5. Nc3 {[%clk 0:02:51]}  b5 {[%clk 0:03:00]} 6. Bd3 {[%clk 0:02:48]}  Qb6 {[%clk 0:03:00]} 7. Nf3 {[%clk 0:02:44]}  Qc7 {[%clk 0:03:00]} 8. O-O {[%clk 0:02:42]}  Bb7 {[%clk 0:03:00]} 9. Re1 {[%clk 0:02:38]}  Be7 {[%clk 0:03:00]} 10. e5 {[%clk 0:02:35]}  f5 {[%clk 0:03:01]} 11. Nd4 {[%clk 0:02:29]}  g6 {[%clk 0:03:00]} 12. a4 {[%clk 0:02:23]}  b4 {[%clk 0:02:59]} 13. Na2 {[%clk 0:02:21]}  Nc6 {[%clk 0:02:57]} 14. Nxc6 {[%clk 0:02:18]}  Qxc6 {[%clk 0:02:57]} 15. Bf1 {[%clk 0:02:15]}  Bc5 {[%clk 0:02:50]} 16. a5 {[%clk 0:02:08]}  Ne7 {[%clk 0:02:48]} 17. c3 {[%clk 0:02:05]}  bxc3 {[%clk 0:02:45]} 18. Nxc3 {[%clk 0:02:03]}  Nd5 {[%clk 0:02:34]} 19. Na4 {[%clk 0:01:47]}  Be7 {[%clk 0:01:44]} 20. Bh6 {[%clk 0:01:45]}  Qc7 {[%clk 0:01:44]} 21. Qb3 {[%clk 0:01:14]}  Bc6 {[%clk 0:01:37]} 22. Bd2 {[%clk 0:01:00]}  O-O {[%clk 0:01:34]} 23. Qg3 {[%clk 0:00:54]}  f4 {[%clk 0:01:30]} 24. Qd3 {[%clk 0:00:49]}  Bb5 {[%clk 0:01:22]} 25. Qd4 {[%clk 0:00:49]}  Bxf1 {[%clk 0:01:21]} 26. Rxf1 {[%clk 0:00:50]}  f3 {[%clk 0:01:20]} 27. g3 {[%clk 0:00:47]}  Rf5 {[%clk 0:01:11]} 28. Rfe1 {[%clk 0:00:47]}  Rb8 {[%clk 0:00:47]} 29. Rac1 {[%clk 0:00:47]}  Qb7 {[%clk 0:00:46]} 30. Nc5 {[%clk 0:00:46]}  Qxb2 {[%clk 0:00:46]} 31. Qd3 {[%clk 0:00:43]}  Bxc5 {[%clk 0:00:40]} 32. Rxc5 {[%clk 0:00:43]}  Rb3 {[%clk 0:00:39]} 0-1


[Site "https://www.chess.com"]

[Event "Titled Tuesday Blitz October 19 2021"]
[White "Rzayev, Bahruz"]
[Black "Timmermans, Mark"]
[WhiteFideId "13403036"]
[BlackFideId "1026399"]
[WhiteElo "2331"]
[BlackElo "2460"]
[Result "0-1"]
[Round "07"]
[TimeControl "180+1"]
[Date "2021.10.19"]
[WhiteClock "0:00:19"]
[BlackClock "0:00:22"]

1. e4 {[%clk 0:03:00]}  e5 {[%clk 0:03:00]} 2. Nf3 {[%clk 0:03:00]}  Nc6 {[%clk 0:03:00]} 3. d4 {[%clk 0:02:58]}  exd4 {[%clk 0:03:01]} 4. Nxd4 {[%clk 0:02:59]}  Nf6 {[%clk 0:03:02]} 5. Nxc6 {[%clk 0:02:56]}  bxc6 {[%clk 0:03:02]} 6. e5 {[%clk 0:02:57]}  Qe7 {[%clk 0:03:03]} 7. Qe2 {[%clk 0:02:57]}  Nd5 {[%clk 0:03:04]} 8. c4 {[%clk 0:02:57]}  Nb6 {[%clk 0:03:04]} 9. b3 {[%clk 0:02:55]}  g6 {[%clk 0:03:04]} 10. Bb2 {[%clk 0:02:54]}  Bg7 {[%clk 0:03:04]} 11. Nd2 {[%clk 0:02:53]}  O-O {[%clk 0:03:04]} 12. O-O-O {[%clk 0:02:50]}  Re8 {[%clk 0:03:04]} 13. Ne4 {[%clk 0:02:39]}  Bxe5 {[%clk 0:02:36]} 14. Bxe5 {[%clk 0:02:37]}  Qxe5 {[%clk 0:02:37]} 15. Nf6+ {[%clk 0:02:37]}  Kf8 {[%clk 0:02:38]} 16. Nxe8 {[%clk 0:02:14]}  Qa1+ {[%clk 0:02:00]} 17. Kc2 {[%clk 0:02:14]}  Qxa2+ {[%clk 0:01:58]} 18. Kc3 {[%clk 0:02:14]}  Qa5+ {[%clk 0:01:40]} 19. Kb2 {[%clk 0:02:13]}  Na4+ {[%clk 0:01:27]} 20. bxa4 {[%clk 0:02:03]}  Rb8+ {[%clk 0:01:27]} 21. Kc1 {[%clk 0:02:01]}  Qc3+ {[%clk 0:01:11]} 22. Qc2 {[%clk 0:02:00]}  Qa3+ {[%clk 0:01:12]} 23. Kd2 {[%clk 0:01:58]}  Rb2 {[%clk 0:01:13]} 24. Nf6 {[%clk 0:01:47]}  Qd6+ {[%clk 0:01:00]} 25. Ke1 {[%clk 0:01:24]}  Qe5+ {[%clk 0:00:52]} 26. Qe2 {[%clk 0:01:11]}  Rxe2+ {[%clk 0:00:52]} 27. Bxe2 {[%clk 0:01:12]}  Qc3+ {[%clk 0:00:45]} 28. Rd2 {[%clk 0:01:08]}  Qxf6 {[%clk 0:00:45]} 29. h4 {[%clk 0:01:06]}  Qa1+ {[%clk 0:00:44]} 30. Bd1 {[%clk 0:01:05]}  d6 {[%clk 0:00:44]} 31. h5 {[%clk 0:01:04]}  Be6 {[%clk 0:00:42]} 32. c5 {[%clk 0:01:01]}  Qe5+ {[%clk 0:00:37]} 33. Kf1 {[%clk 0:00:58]}  Qxc5 {[%clk 0:00:37]} 34. hxg6 {[%clk 0:00:58]}  hxg6 {[%clk 0:00:38]} 35. Rh8+ {[%clk 0:00:55]}  Kg7 {[%clk 0:00:38]} 36. Ra8 {[%clk 0:00:55]}  Qc4+ {[%clk 0:00:29]} 37. Ke1 {[%clk 0:00:54]}  Qe4+ {[%clk 0:00:21]} 38. Re2 {[%clk 0:00:46]}  Qxg2 {[%clk 0:00:20]} 39. Rxa7 {[%clk 0:00:46]}  Bg4 {[%clk 0:00:19]} 40. f3 {[%clk 0:00:40]}  Qg1+ {[%clk 0:00:19]} 41. Kd2 {[%clk 0:00:40]}  Qxa7 {[%clk 0:00:19]} 42. fxg4 {[%clk 0:00:39]}  Qd4+ {[%clk 0:00:20]} 43. Ke1 {[%clk 0:00:39]}  Qxg4 {[%clk 0:00:21]} 44. Rf2 {[%clk 0:00:36]}  Qb4+ {[%clk 0:00:21]} 45. Kf1 {[%clk 0:00:36]}  c5 {[%clk 0:00:22]} 46. Kg2 {[%clk 0:00:22]}  c4 {[%clk 0:00:22]} 47. Bc2 {[%clk 0:00:22]}  c3 {[%clk 0:00:22]} 48. Re2 {[%clk 0:00:20]}  d5 {[%clk 0:00:22]} 49. Kf2 {[%clk 0:00:20]}  d4 {[%clk 0:00:23]} 50. Kf3 {[%clk 0:00:19]}  c5 {[%clk 0:00:22]} 51. Ke4 {[%clk 0:00:19]}  d3+ {[%clk 0:00:22]} 52. Kxd3 {[%clk 0:00:19]}  Qd4# {[%clk 0:00:22]} 0-1


[Site "https://www.chess.com"]

[Event "Titled Tuesday Blitz October 19 2021"]
[White "Sethuraman, S.P."]
[Black "Sanal, Vahap"]
[WhiteFideId "5021596"]
[BlackFideId "6300545"]
[WhiteElo "2477"]
[BlackElo "2492"]
[Result "0-1"]
[Round "07"]
[TimeControl "180+1"]
[Date "2021.10.19"]
[WhiteClock "0:00:08"]
[BlackClock "0:01:38"]

1. e4 {[%clk 0:03:00]}  c5 {[%clk 0:02:54]} 2. Nf3 {[%clk 0:03:00]}  e6 {[%clk 0:02:55]} 3. d4 {[%clk 0:03:00]}  cxd4 {[%clk 0:02:56]} 4. Nxd4 {[%clk 0:03:01]}  a6 {[%clk 0:02:56]} 5. Bd3 {[%clk 0:03:00]}  Nf6 {[%clk 0:02:56]} 6. O-O {[%clk 0:02:59]}  d6 {[%clk 0:02:57]} 7. c4 {[%clk 0:02:57]}  Be7 {[%clk 0:02:57]} 8. b3 {[%clk 0:02:57]}  Qc7 {[%clk 0:02:57]} 9. Bb2 {[%clk 0:02:55]}  Nbd7 {[%clk 0:02:57]} 10. Nc3 {[%clk 0:02:54]}  b6 {[%clk 0:02:57]} 11. f4 {[%clk 0:02:53]}  O-O {[%clk 0:02:56]} 12. Kh1 {[%clk 0:02:53]}  Re8 {[%clk 0:02:55]} 13. Qe2 {[%clk 0:02:53]}  Bb7 {[%clk 0:02:55]} 14. Rae1 {[%clk 0:02:52]}  g6 {[%clk 0:02:55]} 15. Nf3 {[%clk 0:02:34]}  Rad8 {[%clk 0:02:54]} 16. Ng5 {[%clk 0:02:33]}  Bf8 {[%clk 0:02:50]} 17. Bb1 {[%clk 0:02:19]}  Bg7 {[%clk 0:02:50]} 18. e5 {[%clk 0:02:14]}  Nh5 {[%clk 0:02:49]} 19. exd6 {[%clk 0:02:11]}  Qxd6 {[%clk 0:02:46]} 20. Nce4 {[%clk 0:02:10]}  Qe7 {[%clk 0:02:39]} 21. Bxg7 {[%clk 0:01:59]}  Nxg7 {[%clk 0:02:39]} 22. Qf2 {[%clk 0:01:56]}  h6 {[%clk 0:02:38]} 23. Nf3 {[%clk 0:01:55]}  Nc5 {[%clk 0:02:38]} 24. Ne5 {[%clk 0:01:49]}  Nf5 {[%clk 0:02:33]} 25. Nxc5 {[%clk 0:01:26]}  Qxc5 {[%clk 0:02:33]} 26. Qxc5 {[%clk 0:01:25]}  bxc5 {[%clk 0:02:34]} 27. Bxf5 {[%clk 0:01:26]}  exf5 {[%clk 0:02:34]} 28. Kg1 {[%clk 0:01:20]}  Kg7 {[%clk 0:02:19]} 29. Rd1 {[%clk 0:01:17]}  Be4 {[%clk 0:02:17]} 30. Nd7 {[%clk 0:01:09]}  Bc6 {[%clk 0:02:12]} 31. Ne5 {[%clk 0:01:05]}  Be4 {[%clk 0:02:12]} 32. Nd7 {[%clk 0:00:58]}  Ba8 {[%clk 0:02:08]} 33. Rf2 {[%clk 0:00:51]}  Re4 {[%clk 0:02:03]} 34. Rfd2 {[%clk 0:00:38]}  Rxf4 {[%clk 0:02:03]} 35. Nxc5 {[%clk 0:00:37]}  Rxd2 {[%clk 0:01:50]} 36. Rxd2 {[%clk 0:00:38]}  Rg4 {[%clk 0:01:51]} 37. Nd7 {[%clk 0:00:34]}  f4 {[%clk 0:01:47]} 38. Kf1 {[%clk 0:00:32]}  f3 {[%clk 0:01:47]} 39. gxf3 {[%clk 0:00:29]}  Rf4 {[%clk 0:01:48]} 40. Ne5 {[%clk 0:00:26]}  Kf6 {[%clk 0:01:44]} 41. Ng4+ {[%clk 0:00:21]}  Kg5 {[%clk 0:01:43]} 42. Nf2 {[%clk 0:00:18]}  Rxf3 {[%clk 0:01:43]} 43. Rd8 {[%clk 0:00:18]}  Bc6 {[%clk 0:01:40]} 44. Rd6 {[%clk 0:00:18]}  Bb7 {[%clk 0:01:40]} 45. Rb6 {[%clk 0:00:17]}  Bc8 {[%clk 0:01:40]} 46. c5 {[%clk 0:00:16]}  Bf5 {[%clk 0:01:38]} 47. c6 {[%clk 0:00:16]}  Kf4 {[%clk 0:01:37]} 48. Ke2 {[%clk 0:00:15]}  Rc3 {[%clk 0:01:36]} 49. Rxa6 {[%clk 0:00:13]}  Rc2+ {[%clk 0:01:36]} 50. Ke1 {[%clk 0:00:13]}  Kf3 {[%clk 0:01:36]} 51. Nd1 {[%clk 0:00:07]}  Re2+ {[%clk 0:01:36]} 52. Kf1 {[%clk 0:00:07]}  Bh3+ {[%clk 0:01:37]} 53. Kg1 {[%clk 0:00:08]}  Re1# {[%clk 0:01:38]} 0-1


[Site "https://www.chess.com"]